Cogmind - Beta 16.1 @@@ ROGUE MODE // 2026.03.15 @ 05:13:01 Player: RecursiveCharlatan Result: Destroyed by S-27 Virus with Autogun Performance ------------- Evolutions (4) 2000 Regions Visited (8) 1600 Robots Destroyed (100) 500 Value Destroyed (3747) 3747 Prototype IDs (11) 220 Alien Tech Used (0) 0 Bonus (104) 104 TOTAL SCORE: 8171 Bonus ------- High Alert Combat Kills 11 Follower Combat Kills 93 Cogmind --------- Core Integrity 0/850 Matter 290/300 Energy 287/290 System Corruption 15% Temperature Cool (0) Movement Walking (114) Location -6/Factory Parts ------- > --- POWER (1) -------- Improved Deuterium Engine > --- PROPULSION (4) --- FC-Gravmag Exoskeleton > --- UTILITY (7) ------ Armored Scrap Engine Advanced Heat Sink Large Storage Unit Advanced Sensor Array Improved Signal Interpreter Seismic Detector > --- WEAPON (3) ------- Heavy Pick > --- INVENTORY (15) --- Energy Well (350) Improved Medium Armor Plating High-powered Shock Rifle High-powered Shock Rifle Proton Cannon Mining Laser Peak State ------------ > --- POWER ------------ Antimatter-Momentum Reactor > --- PROPULSION ------- FC-Gravmag Exoskeleton > --- UTILITY ---------- Armored Scrap Engine Advanced Heat Sink Advanced Sensor Array Improved Signal Interpreter Seismic Detector Advanced Melee Analysis Suite > --- WEAPON ----------- Thermal Plasma Construct/C Cld. Energy Gauss Construct/G Heavy Pick > --- INVENTORY -------- Large Storage Unit Energy Well Improved Medium Armor Plating Proton Cannon Mining Laser [Rating: 74] Favorites ----------- Power Reinforced Deuterium Engine Engine Reinforced Deuterium Engine Power Core Light Nuclear Core Reactor Constructs Propulsion Light Treads Treads Light Treads Leg Constructs Hover Unit Airjet Utility Improved Heat Sink Device Improved Heat Sink Storage Large Storage Unit Processor Improved Signal Interpreter Hackware Hacking Suite Protection Hardened Medium Armor Plating Weapon Constructs Energy Gun Spread Laser Energy Cannon Constructs Ballistic Gun Constructs Ballistic Cannon Heavy Assault Cannon Special Weapon Mining Laser Piercing Weapon Heavy Pick Build | -11 -10 -10 -8 -8 -8 -6 -6 -6 ------- Run | Yrd Mat Sub Mat Sto Rec Fac Was Fac Slots Evolved 8 | . . . 4 . . 4 . . Power . | . . . . . . . . . Propulsion 2 | . . . 1 . . 1 . . Utility 5 | . . . 3 . . 2 . . Weapon 1 | . . . . . . 1 . . Parts Attached 79 | 8 4 2 31 10 2 9 4 9 Power 7 | 1 . . 4 1 . . . 1 Engine 6 | 1 . . 3 1 . . . 1 Core 1 | . . . 1 . . . . . Reactor . | . . . . . . . . . Propulsion 13 | 2 . . 8 3 . . . . Treads 8 | 2 . . 3 3 . . . . Leg 3 | . . . 3 . . . . . Wheel . | . . . . . . . . . Hover 2 | . . . 2 . . . . . Flight . | . . . . . . . . . Utility 34 | 2 1 . 8 3 1 7 4 8 Device 12 | 1 . . 3 . 1 1 3 3 Storage 5 | 1 1 . . 1 . . . 2 Processor 5 | . . . 1 . . 2 . 2 Hackware 2 | . . . . . . 2 . . Protection 10 | . . . 4 2 . 2 1 1 Artifact . | . . . . . . . . . Weapon 25 | 3 3 2 11 3 1 2 . . Energy Gun 10 | 3 . . 7 . . . . . Energy Cannon . | . . . . . . . . . Ballistic Gun 7 | . 2 1 1 1 1 1 . . Ballistic Cannon 5 | . . . 3 2 . . . . Launcher . | . . . . . . . . . Special Weapon 2 | . 1 1 . . . . . . Impact Weapon . | . . . . . . . . . Slashing Weapon . | . . . . . . . . . Piercing Weapon 1 | . . . . . . 1 . . Special Melee Weapon . | . . . . . . . . . Unidentified Prototypes 6 | . . . 3 2 1 . . . Parts Lost 35 | . . 4 10 2 . 4 8 7 Power 3 | . . . 1 . . . . 2 Propulsion 9 | . . 2 2 1 . 1 2 1 Utility 11 | . . 1 1 1 . 3 4 1 Weapon 12 | . . 1 6 . . . 2 3 Highest Loss Streak 10 | . . 3 10 1 . 2 7 3 To Critical Strikes 2 | . . 1 . . . . 1 . Average Backups 11 | 1 6 8 11 14 13 11 8 4 Power . | . . . 1 2 1 . . . Propulsion . | . . . 2 1 . . . . Utility 3 | . . 1 2 4 3 6 5 2 Weapon 6 | 1 6 7 5 7 8 4 3 2 Tool/Special . | . . . . . . . . . Unused Backups 26 | . . . 2 3 9 . 9 3 Power 1 | . . . . . 1 . . . Propulsion 3 | . . . 2 . 1 . . . Utility 4 | . . . . . . . 4 . Weapon 18 | . . . . 3 7 . 5 3 Tool/Special . | . . . . . . . . . Average Slot Usage (%) 78 | . 99 77 86 90 82 65 39 51 Engine 8 | . 14 14 8 9 8 6 6 1 Treads 13 | . 28 20 1 26 21 . . 1 Leg 3 | . . . 19 . . 3 4 1 Hover 1 | . . . 1 . 3 . . 1 Device 11 | . 14 . 8 9 14 12 8 19 Storage 8 | . 14 14 9 9 9 6 3 1 Processor 3 | . . . . 9 3 5 1 5 Protection 10 | . . . 19 17 12 5 3 . Energy Gun 2 | . 3 . 12 1 . . . . Ballistic Gun 5 | . 23 27 3 . 2 5 1 1 Ballistic Cannon 4 | . . . 1 8 6 4 6 . Peak Build Rating 74 | 7 10 10 32 31 46 67 72 74 Average Rating 35 | 5 9 8 23 29 38 61 56 52 On Entrance 25 | . 7 10 7 30 31 46 67 30 Avg Prop Armor Cover (%) 4 | . . . 11 . 4 . . . Naked Turns . | . . . . . . . . . Heaviest Build 123 | 14 32 32 53 123 123 53 90 50 Greatest Support 76 | 40 40 40 60 60 60 21 14 76 Greatest Overweight (x) 15 | . . 10 10 2 15 3 7 5 Average Overweight (x) 1 | . . 1 1 . 2 2 4 . Largest Inventory Capacity 25 | 8 15 15 15 25 25 15 15 15 Average Capacity 16 | 7 9 15 15 16 24 15 10 7 Most Carried 22 | 2 8 9 15 22 22 15 14 6 Average Carried 12 | 1 6 8 11 15 16 11 8 4 Final Capacity 25 | 8 15 15 15 25 15 15 5 15 Final Carried 21 | 2 8 8 13 21 4 15 2 6 Scrap Engine Consumption 86 | . . . . . 28 14 7 37 Constructs Created 7 | . . . . . 3 . . 4 Constructs Modified 28 | . . . . . 9 7 2 10 Class Distribution -------------------- 30% | Commander-Mutant 24% | Scavenger-Mutant 23% | Mutant 15% | Commander-Construct 6% | Construct Dominant Class ---------------- Mutant | -10/Materials Mutant | -10/Subcaves Scavenger-Mutant | -8/Materials Scavenger-Mutant | -8/Storage Commander-Mutant | -8/Recycling Commander-Construct | -6/Factory Construct | -6/Waste Mutant | -6/Factory Resources | -11 -10 -10 -8 -8 -8 -6 -6 -6 ----------- Run | Yrd Mat Sub Mat Sto Rec Fac Was Fac Matter Collected 2901 | 255 179 196 534 602 170 416 113 436 Remotely . | . . . . . . . . . Salvage Created 4539 | 145 213 249 827 1072 . 583 533 917 Parts 212 | 9 10 21 39 54 . 26 10 43 Haulers Intercepted 4 | . . . 1 1 . 1 . 1 Recyclers Shooed . | . . . . . . . . . Parts Field Recycled . | . . . . . . . . . Retrieved Matter . | . . . . . . . . . Parts Self-Destructed 9 | . . 9 . . . . . . Prevented . | . . . . . . . . . Parts Restored . | . . . . . . . . . Kills | -11 -10 -10 -8 -8 -8 -6 -6 -6 ------- Run | Yrd Mat Sub Mat Sto Rec Fac Was Fac Combat Hostiles Destroyed 82 | . 4 7 19 26 . 13 2 11 Melee 6 | . . . . . . . . 6 Guns 34 | . 4 7 16 1 . 3 . 3 Cannons 42 | . . . 3 25 . 10 2 2 Classes Destroyed 15 | 2 2 2 4 2 . 1 1 1 Worker 1 | . . . . 1 . . . . Builder 5 | . 1 . 1 2 . 1 . . Tunneler 3 | 3 . . . . . . . . Hauler 4 | . . . 1 1 . 1 . 1 Recycler 3 | 1 . . . 1 . . . 1 Operator 1 | . . . . . . . . 1 Watcher 1 | . . . . 1 . . . . Swarmer 13 | . . 3 . 4 . 6 . . Grunt 34 | . 4 . 12 12 . 3 . 3 Brawler 1 | . . . 1 . . . . . Sentry 18 | . . . 4 9 . 1 . 4 Hunter 5 | . . . 2 1 . . . 2 Programmer 5 | . . . . . . 3 . 2 Compactor 2 | . . . . . . . 2 . Subdweller 4 | . . 4 . . . . . . Best Kill Streak 7 | 3 3 3 5 7 . 4 1 4 Combat Bots Only 5 | . 2 3 5 5 . 4 1 3 Max Kills in Single Turn 2 | 1 1 1 1 2 . 2 1 1 Gunslinging . | . . . . . . . . . Exploded . | . . . . . . . . . Melee 1 | . . . . . . . . 1 Uniques/NPCs Destroyed . | . . . . . . . . . Combat | -11 -10 -10 -8 -8 -8 -6 -6 -6 -------- Run | Yrd Mat Sub Mat Sto Rec Fac Was Fac Hostile Shots Fired 663 | . 8 40 148 107 . 122 56 182 Missed 172 | . 2 6 32 30 . 41 4 57 Hits 491 | . 6 34 116 77 . 81 52 125 Melee 52 | . . . . . . . 52 . Projectile 439 | . 6 34 116 77 . 81 . 125 Critical Strikes 43 | . . 1 9 3 . 3 26 1 Damage Taken 8860 | . 114 552 1762 1038 . 1442 2315 1637 Core 1262 | . 12 48 327 21 . 122 330 402 Absorbed by Shields . | . . . . . . . . . Regen/Repaired (Parts) 1151 | . . . . 117 5 203 446 380 Core Remaining (%) 70 | 100 . 76 . . 36 . . . Volleys Fired 311 | 7 16 34 63 78 3 50 31 29 Largest 2 | 1 2 2 2 2 1 2 2 2 Hottest 139 | 40 46 100 130 92 50 139 139 85 Shots Fired 484 | 7 29 60 124 92 3 83 40 46 Gun 261 | 7 26 53 102 14 . 33 9 17 Cannon 212 | . . . 22 78 3 49 31 29 Launcher . | . . . . . . . . . Special 11 | . 3 7 . . . 1 . . Kinetic 302 | . 26 53 49 78 3 53 40 . Thermal 181 | 6 3 7 75 14 . 30 . 46 Explosive . | . . . . . . . . . Electromagnetic 1 | 1 . . . . . . . . Robot Hit Streak 20 | 2 7 12 15 6 1 10 11 20 Robot Miss Streak 4 | 1 4 3 3 4 1 3 3 2 Penetration Max 1 | . . . . 1 . . 1 . Secondary Targets 2 | . . 1 1 . . . . . Max Gunslinging Chain 1 | . . 1 1 . . . . . Shots Hit Robots 344 | 5 17 35 93 57 1 46 34 56 Core Hits 192 | 3 7 11 83 31 . 24 6 27 Critical Kills 2 | . . 2 . . . . . . Critical Parts Destroyed 1 | . . . . . . . 1 . Critical Strikes 17 | . . 2 3 9 . . 1 2 Burn 5 | . . . 2 2 . . . 1 Destroy 3 | . . 2 . . . . 1 . Blast 8 | . . . 1 7 . . . . Impale 1 | . . . . . . . . 1 Melee Attacks 30 | . . . . . . 1 . 29 Impact . | . . . . . . . . . Slashing . | . . . . . . . . . Piercing 30 | . . . . . . 1 . 29 Sneak Attacks 3 | . . . . . . . . 3 Combat Hostiles 1 | . . . . . . . . 1 Follow-up Attacks . | . . . . . . . . . Damage Inflicted 9876 | 70 249 509 1685 2616 . 1300 1820 1627 Guns 3155 | 69 249 509 1369 206 . 357 59 337 Cannons 6012 | . . . 316 2398 . 933 1761 604 Explosions . | . . . . . . . . . Melee 686 | . . . . . . . . 686 Ramming 23 | 1 . . . 12 . 10 . . Kinetic 6346 | . 249 509 572 2398 . 798 1820 . Thermal 2808 | 56 . . 1113 206 . 492 . 941 Explosive . | . . . . . . . . . Electromagnetic 13 | 13 . . . . . . . . Impact . | . . . . . . . . . Slashing . | . . . . . . . . . Piercing 686 | . . . . . . . . 686 Highest Corruption 15 | . . . . . . 1 15 15 Average Corruption 7 | . . . . . . 1 7 15 Corruption Purged . | . . . . . . . . . Corruption Blocked . | . . . . . . . . . Effects 67 | . . . . . . 8 13 46 Message Errors 22 | . . . . . . 2 5 15 Matter Fused 12 | . . . . . . 3 3 6 Heat Flow Errors 7 | . . . . . . . 1 6 Energy Discharges 11 | . . . . . . 2 1 8 Parts Fused 1 | . . . . . . . 1 . Data Loss (minor) 8 | . . . . . . . 2 6 Data Loss (major) 3 | . . . . . . . . 3 Misfires 1 | . . . . . . 1 . . Weapon Failures 2 | . . . . . . . . 2 Overload Shots 1 | . . . . . . . . 1 Overflow Damage 130 | . . . 13 65 . 15 . 37 Projectiles 93 | . . . 13 65 . 15 . . Explosions . | . . . . . . . . . Melee 37 | . . . . . . . . 37 Knockbacks 7 | . . . 2 4 . 1 . . Impact . | . . . . . . . . . Kinetic 6 | . . . 2 3 . 1 . . Secondary 1 | . . . . 1 . . . . Self-Inflicted Damage . | . . . . . . . . . Shots . | . . . . . . . . . Rammed 1 | . . . . 1 . . . . Targets Rammed 4 | 1 . . . 2 . 1 . . Kicked 1 | . . . . . . 1 . . Crushed 2 | 1 . . . 1 . . . . Highest Temperature 422 | . 30 . 263 26 . 131 422 251 Average Temperature 96 | . 10 . 86 10 . 21 184 90 Received Heat Transfer 2106 | . 42 93 873 432 . 387 . 279 Effects 8 | . . . 3 . . . 5 . Energy Bleed 2 | . . . . . . . 2 . Interference 3 | . . . 3 . . . . . Matter Decay 3 | . . . . . . . 3 . Siege Activations . | . . . . . . . . . Martial Activations . | . . . . . . . . . Shielding Activations . | . . . . . . . . . Robots Disrupted . | . . . . . . . . . Combat Hostiles . | . . . . . . . . . Robots Corrupted . | . . . . . . . . . Combat Hostiles . | . . . . . . . . . Parts Fried . | . . . . . . . . . Impact Corruptions . | . . . . . . . . . Robots Melted . | . . . . . . . . . Combat Hostiles . | . . . . . . . . . Parts Melted 9 | . . . 2 1 . . . 6 Heat Transferred 5437 | 125 . . 1853 555 . 900 . 2004 Parts Sabotaged . | . . . . . . . . . Parts Stolen . | . . . . . . . . . Parts Stripped . | . . . . . . . . . Power Chain Reactions . | . . . . . . . . . Alert | -11 -10 -10 -8 -8 -8 -6 -6 -6 ------- Run | Yrd Mat Sub Mat Sto Rec Fac Was Fac Maximum Alert Level 2 | . . . . 2 . . . . Low Security (%) 90 | 100 100 . 100 32 100 100 100 100 Level 1 8 | . . . . 66 . . . . Level 2 . | . . . . . . . . . Level 3 . | . . . . . . . . . Level 4 . | . . . . . . . . . Level 5 . | . . . . . . . . . High Security . | . . . . . . . . . Max Security . | . . . . . . . . . Peak Influence 403 | 5 62 . 131 403 132 149 49 75 Initial 132 | . 3 . . 48 132 . 49 . Average 52 | 2 11 . 31 258 4 50 7 16 Influence Increases 2641 | 20 154 85 556 865 65 517 3 376 Destroy 0b10 Robot/C 1600 | . 80 60 380 520 20 320 . 220 Destroy 0b10 Robot/NC 90 | 20 5 . 10 30 . 10 . 15 Destroy Leader 470 | . 20 10 102 164 . 82 . 92 Allied During Kill 13 | . . . . . 13 . . . Successful Hack 141 | . 4 . 45 13 28 51 . . Select Force Hacks 30 | . 30 . . . . . . . Disable Machine 90 | . 15 . 15 30 . 15 . 15 Destroy Structure 57 | . . . 4 33 4 9 3 4 Lose Combat Pursuer 150 | . . 15 . 75 . 30 . 30 Influence Decreases 2599 | 15 155 89 441 640 405 377 143 334 Entered New Map 371 | . 2 3 . 67 208 . 91 . Time Decay 2036 | 15 153 76 356 553 177 357 42 307 Lost Part 172 | . . 10 85 20 . 20 10 27 Lost Ally 20 | . . . . . 20 . . . Squads Dispatched 21 | . 2 . 2 4 . 7 . 6 Investigation 5 | . 1 . 2 2 . . . . Extermination 6 | . . . . . . 4 . 2 Reinforcement 5 | . 1 . . 2 . . . 2 Assault . | . . . . . . . . . Garrison 5 | . . . . . . 3 . 2 Intercept . | . . . . . . . . . Searches Triggered . | . . . . . . . . . Construction Impeded . | . . . . . . . . . Haulers Reinforced 1 | . . . . . . . . 1 Active Scanning Responses . | . . . . . . . . . Cargo Convoy Interrupts . | . . . . . . . . . Stealth | -11 -10 -10 -8 -8 -8 -6 -6 -6 --------- Run | Yrd Mat Sub Mat Sto Rec Fac Was Fac Distress Signals 6 | . 2 . 3 1 . . . . Communications Jammed . | . . . . . . . . . Distress Signals . | . . . . . . . . . Times Spotted 121 | . 9 8 27 35 3 15 6 18 Peak Tracking Total 7 | . 3 4 6 7 1 3 4 3 Tactical Retreats 9 | . . 1 . 4 . 2 . 2 Traps | -11 -10 -10 -8 -8 -8 -6 -6 -6 ------- Run | Yrd Mat Sub Mat Sto Rec Fac Was Fac Traps Triggered 12 | . 1 . 2 3 . 4 . 2 Indirectly . | . . . . . . . . . Trap Hack Attempts . | . . . . . . . . . Triggered . | . . . . . . . . . Disarmed . | . . . . . . . . . Reprogrammed . | . . . . . . . . . Reused . | . . . . . . . . . Traps Extracted . | . . . . . . . . . Installed . | . . . . . . . . . Triggered . | . . . . . . . . . Machines | -11 -10 -10 -8 -8 -8 -6 -6 -6 ---------- Run | Yrd Mat Sub Mat Sto Rec Fac Was Fac Machines Disabled 7 | . 2 . 1 2 . 1 . 1 Max in Single Turn 1 | . 1 . 1 1 . 1 . 1 Garrison Access 1 | . . . . . . 1 . . Machines Repaired . | . . . . . . . . . Machines Dismantled . | . . . . . . . . . Machines Sabotaged . | . . . . . . . . . Overloaded Fab Kills . | . . . . . . . . . Hacking | -11 -10 -10 -8 -8 -8 -6 -6 -6 --------- Run | Yrd Mat Sub Mat Sto Rec Fac Was Fac Machines Accessed 35 | . 5 . 10 6 7 5 . 2 Terminals 29 | . 4 . 9 5 6 4 . 1 Fabricators 1 | . . . . . . . . 1 Repair Stations 2 | . . . 1 1 . . . . Recycling Units 1 | . 1 . . . . . . . Scanalyzers . | . . . . . . . . . Garrison Access 1 | . . . . . . 1 . . Total Hacks 85 | . 10 . 33 11 16 12 . 3 Successful 41 | . 2 . 16 7 9 6 . 1 Failed 44 | . 8 . 17 4 7 6 . 2 Catastrophic 8 | . 1 . 3 1 2 . . 1 Database Lockouts . | . . . . . . . . . Manual 51 | . 10 . 26 3 8 4 . . Terminals 72 | . 9 . 30 8 14 9 . 2 Fabricators 1 | . . . . . . . . 1 Repair Stations 6 | . . . 3 3 . . . . Recycling Units 1 | . 1 . . . . . . . Scanalyzers . | . . . . . . . . . Garrison Access 3 | . . . . . . 3 . . Terminal Hacks 16 | . . . 6 4 4 2 . . Record 1 | . . . 1 . . . . . Part Schematic 3 | . . . . . 2 1 . . Open Door 3 | . . . . 3 . . . . Terminal Index 2 | . . . 1 1 . . . . Garrison Index 1 | . . . 1 . . . . . Alert Level 2 | . . . 2 . . . . . Locate Traps 1 | . . . . . . 1 . . Zone Layout 1 | . . . 1 . . . . . Release Object 2 | . . . . . 2 . . . Fabricator Hacks 1 | . . . . . . . . 1 Load Schematic 1 | . . . . . . . . 1 Repair Station Hacks 3 | . . . 1 2 . . . . Scan Component 2 | . . . 1 1 . . . . Repair 1 | . . . . 1 . . . . Recycling Unit Hacks . | . . . . . . . . . Scanalyzer . | . . . . . . . . . Garrison Access Hacks 1 | . . . . . . 1 . . Seal Access 1 | . . . . . . 1 . . Unauthorized Hacks 20 | . 2 . 9 1 5 3 . . Terminals 19 | . 1 . 9 1 5 3 . . Botnet 3 | . . . 3 . . . . . Skim 16 | . 1 . 6 1 5 3 . . Fabricators . | . . . . . . . . . Repair Stations . | . . . . . . . . . Recycling Units 1 | . 1 . . . . . . . Tunnel 1 | . 1 . . . . . . . Scanalyzers . | . . . . . . . . . Garrison Access . | . . . . . . . . . Data Cores Recovered . | . . . . . . . . . Used . | . . . . . . . . . Hacking Detections 29 | . 4 . 9 4 5 5 . 2 Full Trace Events 2 | . . . 1 1 . . . . Feedback Events . | . . . . . . . . . Feedback Blocked . | . . . . . . . . . Robot Schematics Acquired . | . . . . . . . . . Robots Built . | . . . . . . . . . Authchips . | . . . . . . . . . Time . | . . . . . . . . . Total Robot Build Rating . | . . . . . . . . . Part Schematics Acquired 3 | . . . . . 2 1 . . Parts Built . | . . . . . . . . . Authchips . | . . . . . . . . . Time . | . . . . . . . . . Total Part Build Rating . | . . . . . . . . . Part Studies Acquired . | . . . . . . . . . Parts Repaired 1 | . . . . 1 . . . . Time 26 | . . . . 26 . . . . Parts Recycled . | . . . . . . . . . Recycled Matter . | . . . . . . . . . Retrieved Matter . | . . . . . . . . . Retrieved Components . | . . . . . . . . . Parts Scanalyzed . | . . . . . . . . . Part Schematics Acquired . | . . . . . . . . . Parts Damaged . | . . . . . . . . . Bothacking | -11 -10 -10 -8 -8 -8 -6 -6 -6 ------------ Run | Yrd Mat Sub Mat Sto Rec Fac Was Fac Used RIF Installer . | . . . . . . . . . Robots Hacked . | . . . . . . . . . Non-combat . | . . . . . . . . . Combat . | . . . . . . . . . Robot Hacks Applied . | . . . . . . . . . Relay Couplers Released . | . . . . . . . . . Fabnet Peak Effective % . | . . . . . . . . . Robots Rewired . | . . . . . . . . . Allies Hacked . | . . . . . . . . . Hacks Repelled . | . . . . . . . . . Allies | -11 -10 -10 -8 -8 -8 -6 -6 -6 -------- Run | Yrd Mat Sub Mat Sto Rec Fac Was Fac Total Allies 10 | . . . . 10 . . . . Largest Group 10 | . . . . 10 10 9 . . Highest-Rated Group 173 | . . . . 173 173 154 . . Highest-Rated Ally 29 | . . . . 29 29 29 . . Total Orders 1 | . . . . . . 1 . . STAY 1 | . . . . . . 1 . . Ally Attacks 50 | . . . . . 29 21 . . Total Damage 597 | . . . . . 323 274 . . Kills 6 | . . . . . 3 3 . . Allies Corrupted . | . . . . . . . . . Allies Melted . | . . . . . . . . . Intel | -11 -10 -10 -8 -8 -8 -6 -6 -6 ------- Run | Yrd Mat Sub Mat Sto Rec Fac Was Fac Active Infowar (turns) 3086 | 13 825 13 . . . 1481 79 675 Sensors 2105 | . . . . . . 1481 79 545 Seismic 1526 | 13 825 13 . . . . . 675 Robot Analysis Total . | . . . . . . . . . Derelict Logs Recovered . | . . . . . . . . . Drone Launches . | . . . . . . . . . Drone Recoveries . | . . . . . . . . . Exploration | -11 -10 -10 -8 -8 -8 -6 -6 -6 ------------- Run | Yrd Mat Sub Mat Sto Rec Fac Was Fac Turns Passed 12839 | 138 825 848 2039 1611 3999 1893 368 1118 Spaces Moved 5115 | 72 418 353 873 573 1196 881 94 655 Core 158 | 5 . 43 23 . . . 36 51 Treads 2574 | 67 418 310 41 573 999 . . 166 Legs 1365 | . . . 698 . . 395 58 214 Wheels 374 | . . . . . 132 242 . . Hover 400 | . . . 111 . 65 . . 224 Flight 244 | . . . . . . 244 . . Fastest Speed 50 | 50 160 160 116 160 146 126 150 100 Average Speed 209 | 152 160 207 193 192 315 175 306 122 Slowest Speed 1585 | 160 160 550 550 320 1585 236 400 300 Overloaded Moves . | . . . . . . . . . Propulsion Burnouts . | . . . . . . . . . Robots Hopped . | . . . . . . . . . Potential Cave-ins . | . . . . . . . . . Cave-ins Triggered . | . . . . . . . . . Exploration Rate (%) 48 | 4 61 27 59 79 97 14 76 16 Regions Visited 8 Branch Regions 3 Pre-discovered Areas 4 | . 1 . 1 . 2 . . . Known Exits Taken 3 | . . . 1 1 1 . . . Unknown Exits Taken 3 | 1 1 1 . . . . . . Scrap Searched 3 | . . 3 . . . . . . Spaces Dug 10 | . . . . 3 . 3 . 4 Terrain Destroyed 50 | . . . 2 29 3 9 3 4 Melee 5 | . . . . . . 1 . 4 Projectile 45 | . . . 2 29 3 8 3 . AOE . | . . . . . . . . . Terrain Rammed . | . . . . . . . . . Walls Destroyed . | . . . . . . . . . Machines Disabled . | . . . . . . . . . Actions | -11 -10 -10 -8 -8 -8 -6 -6 -6 --------- Run | Yrd Mat Sub Mat Sto Rec Fac Was Fac Total 6692 | 89 552 408 1101 960 1434 1144 140 864 Wait 999 | . 98 18 101 262 208 178 3 131 Move 5108 | 71 417 352 872 572 1195 881 93 655 Hop . | . . . . . . . . . Pick Up 60 | 1 9 1 16 10 . 17 . 6 Fast Attach 47 | 8 1 . 16 8 1 4 2 7 Attach 27 | . 1 1 10 2 1 6 3 3 Detach 23 | 1 2 . 3 2 7 2 4 2 Swap 25 | . 3 2 8 5 1 3 1 2 Drop 54 | . 5 . 12 15 18 1 3 . Fire 311 | 7 16 34 63 78 3 50 31 29 Melee 30 | . . . . . . 1 . 29 Ram . | . . . . . . . . . Kick 1 | . . . . . . 1 . . Crush 3 | 1 . . . 2 . . . . Escape Stasis 4 | . . . . 4 . . . . Rewire . | . . . . . . . . . Trap . | . . . . . . . . . Miscellaneous . | . . . . . . . . . Route ------- -11/Scrapyard -10/Materials (discovered 3 exits: [*Mat] / [*Min] / [*Sub]) -10/Subcaves (discovered 2 exits: *Mat x2) -8/Materials (discovered 3 exits: *Fac x2 / *Sto) -8/Storage (discovered 2 exits: *Fac / *Rec) -8/Recycling -6/Factory (discovered 3 exits: Fac x3) -6/Waste -6/Factory History --------- Turn | Location | Event 4 | -11/Scrapyard | Discovered new exit (range 16) 139 | -11/Scrapyard | Entered Materials 317 | -10/Materials | Build established: Mutant 407 | -10/Materials | Discovered new exit (range 10) 690 | -10/Materials | Discovered new exit (range 8) 954 | -10/Materials | Discovered new exit (range 8) 964 | -10/Materials | Entered Subcaves 965 | -10/Subcaves | Approached by a straggling Scientist 1023 | -10/Subcaves | Disturbed a concealed Subdweller 1167 | -10/Subcaves | A swath of the cavern ceiling suddenly collapsed 1189 | -10/Subcaves | Shifting Twisted Machinery released Battle Cannon 1313 | -10/Subcaves | Discovered new exit (range 14) 1347 | -10/Subcaves | Discovered new exit (range 9) 1607 | -10/Subcaves | Lost 3 parts (2n1w) 1812 | -10/Subcaves | Entered Materials 1812 | -8/Materials | Evolved 4 slots: Propulsion x1, Utility x3 2211 | -8/Materials | Core integrity fell below 50% 2244 | -8/Materials | Lost 10 parts (1p2n1u6w) 2298 | -8/Materials | Discovered new exit (range 15) 2538 | -8/Materials | Build established: Scavenger-Mutant 2669 | -8/Materials | Learned location of 2 exits from Lower Caves 2714 | -8/Materials | Identified exit to Factory 2748 | -8/Materials | Learned location of 1 exit from Storage 2784 | -8/Materials | Learned 2 Lower Caves zone layouts 2835 | -8/Materials | Learned Factory stockpile data 3768 | -8/Materials | Discovered new exit (range 5) 3813 | -8/Materials | Identified exit to Storage 3851 | -8/Materials | Entered Storage 3852 | -8/Storage | Identified exit to Recycling 4449 | -8/Storage | Repaired Lgt. Treads 5391 | -8/Storage | Assisted by bots powering up and referring to "LRC-V3" 5447 | -8/Storage | Used back door to open Recycling access 5462 | -8/Storage | Entered Recycling 5462 | -8/Recycling | Accompanied by 10 allies 5688 | -8/Recycling | Build established: Commander-Mutant 6502 | -8/Recycling | Identified exit to Factory 6561 | -8/Recycling | Learned Factory security intel 6651 | -8/Recycling | Learned location of Extension (-4) 6764 | -8/Recycling | Learned 2 Lower Caves zone layouts 6811 | -8/Recycling | Learned Storage trap positions 7116 | -8/Recycling | Entered Scraplab 7125 | -8/Recycling | Found Prototype Device 7125 | -8/Recycling | Identified Scrap Engine 9391 | -8/Recycling | Build established: Commander-Construct 9461 | -8/Recycling | Entered Factory 9461 | -6/Factory | Accompanied by 9 allies 9461 | -6/Factory | Evolved 4 slots: Propulsion x1, Utility x2, Weapon x1 9462 | -6/Factory | Identified exit to Factory 10397 | -6/Factory | Garrison activated, responded to threat 11354 | -6/Factory | Sucked down chute 11354 | -6/Factory | Entered Waste 11361 | -6/Waste | Spotted C-40 Crusher 11369 | -6/Waste | EMP discharged 11396 | -6/Waste | Spotted C-40 Crusher 11412 | -6/Waste | Destroyed C-40 Crusher 11433 | -6/Waste | Crushed by Compactor (1 part destroyed, 1 dropped) 11433 | -6/Waste | Destroyed C-40 Crusher 11439 | -6/Waste | Found Damper Plating 11469 | -6/Waste | EMP discharged 11471 | -6/Waste | Spotted C-40 Crusher 11479 | -6/Waste | Spotted C-40 Crusher 11524 | -6/Waste | Spotted C-40 Crusher 11540 | -6/Waste | Spotted C-40 Crusher 11569 | -6/Waste | EMP discharged 11571 | -6/Waste | Crushed by Compactor (1 part destroyed) 11594 | -6/Waste | Crushed by Compactor (0 parts destroyed, 1 dropped) 11626 | -6/Waste | Crushed by Compactor (1 part destroyed) 11637 | -6/Waste | Crushed by Compactor (1 part destroyed) 11669 | -6/Waste | EMP discharged 11669 | -6/Waste | System corruption reached 10% 11678 | -6/Waste | Lost 7 parts (2n4u1w) 11695 | -6/Waste | Discovered new exit (range 10) 11722 | -6/Waste | Entered Factory 11723 | -6/Factory | Core integrity fell below 50% 11889 | -6/Factory | Lost 3 parts (1p1u1w) 11903 | -6/Factory | Build established: Mutant 12518 | -6/Factory | Build established: Construct 12559 | -6/Factory | Core integrity fell below 20% 12721 | -6/Factory | Garrison activated, responded to threat 12840 | -6/Factory | Destroyed by S-27 Virus with Autogun Last Messages --------------- 12741_ Arm. Scrap Engine damaged due to network destabilization (-5). 12744_ K-01 Serf collects debris. 12746_ System corrupted: Heat flow error (+144). 12749_ K-01 Serf collects debris. 12775_ System corrupted: Matter fused (-10). 12802_ System corrupted: Energy discharge (-116). 12809_ U-05 Engineer builds a Wall. 12815_ Thermal Plasma Construct/C destroyed. 12815_ Arm. Scrap Engine damaged due to network destabilization (-10). 12815_ Y-54 Guardian destroyed. 12820_ Acquired 15 matter. 12822_ Arm. Scrap Engine consumes Gatling Laser. 12822_ System corrupted: Energy discharge (-98). 12825_ Arm. Scrap Engine consumes Imp. Light Armor Plating. 12826_ Arm. Scrap Engine consumes Imp. Deuterium Engine. Map ----- +----------------------------------------------------+ | ?????????????????????????????????????????????????# | | ?????????????????????????????????????????????????# | | ?????????????????????????????????????????????????# | | ????????????????????????????#####????????????????# | | ????????????????????????????# ????????????????# | | ????????????????????????????# ????????????????# | | ????????????????????????????# """ #?????####### | | ????????????????????????????# """ #?????# | | ????????????????????????????# ] #?????# | | ????????????????????????????# """ #?????# | | ????????????????????????????# """ #?????# | | ????????????????????????????? """ #?????# | | ??????????????????????????????? ???????# # | | ?????????????????????????????####+########## = # | | ?????????????????????????????# =%# | | ?????????????????????????????# %/ | | ?????????????????????????????# # | | ?????????????????????????????# # | | ?????????????????????????????# # | | ?????????????????????????????# ############### | | ????????????s################# # #? | | ??????????? k k w # #? | | ??????????? s t + #? | | ?????????? # #? | | ?????????? # #? | | ?????????? uu @ #? #? | | ?????????????????#########/#########? #? | | ??????????????????????# u #?????? #? | | ??????????????????????# """"#?????? #? | | ??????????????????????# """"#??????? #? | | ??????????????????????# """"#??????? ?? | | ??????????????????????# """"#???????? ?? | | ??????????????????????# """"#????????#######??? | | ??????????????????????# """"#?????????????????? | | ??????????????????????# """"#?????????????????? | | ??????????????????????# ! % ##????????????????? | | ??????????????????????###########????????????????? | | ??????????????????????????##??###????????????????? | | ?????????????????????????????????????????????????? | | ?????????????????????????????????????????????????? | | ?????????????????????????????????????????????????? | | ?????????????????????????????????????????????????? | | ?????????????????????????????????????????????????? | | ?????????????????????????????????????????????????? | | ?????????????????????????????????????????????????? | | ?????????????????????????????????????????????????? | | ?????????????????????????????????????????????????? | | ?????????????????????????????????????????????????? | | ?????????????????????????????????????????????????? | | ?????????????????????????????????????????????????? | +----------------------------------------------------+ Best States ------------- Heat Dissipation 64 Energy Generation 20 Energy Capacity 450 Matter Stores 300 Matter Capacity 300 Sight Range 16 Robot Scan Range 16 Terrain Scan Density 10 Corruption Containment 8 Armor Coverage 1600 Resistance: EM 90 Evasion (%) 55 Melee Accuracy 8 Recoil Reduction 3 Offensive Hacking 10 Defensive Hacking 10 Item Schematics ----------------- Chainsword | -8/Recycling | Hacked Adv. Treads | -8/Recycling | Hacked Coil Gun | -6/Factory | Hacked Robot Schematics ------------------ None Fabricated ------------ Nothing Repaired ---------- Lgt. Treads | 16% | -8/Storage Studied --------- None Alien Tech Used ----------------- None Achievements -------------- None Challenges ------------ None Game ------ Seed GlidesysAlertJammer Manual? 0 Play Time 00:58:43 Cumulative 143.3 hours Start 2026.03.15 @ 04:10:16 End 2026.03.15 @ 05:13:01 Sessions 1 Manual Loads 0 Difficulty Rogue Special Mode None Game No. 270 Rogue 270 Adventurer 0 Explorer 0 Win Type - Total 3 Types 2/0/0/1/0/0/0/0/0/0 Lore% 58 Gallery% 58 Achievement% 44 Wizard Run 0 Options --------- Layout 2 ASCII 0 Keyboard 1 Movement Numpad Keybinds 0 Fullscreen 1 Font 24/Smallcaps Map View 50x44 Zoom Use 0% Tactical HUD 1 Map Filters NONE Filters NONE Steam 1 RUN: 75278be6-5e3b-46d6-837d-efeec762718a